[Event "Swiss Championship U16 2022"]
[Site "Biel"]
[Date "2022.07.18"]
[Round "2.4"]
[White "Kwiatkowski, Jakub"]
[Black "Gemelli, Romain"]
[Result "0-1"]
[ECO "B30"]
[WhiteElo "1770"]
[BlackElo "2045"]
[Annotator "TA"]
[PlyCount "80"]
[EventDate "2022.07.18"]
[EventType "swiss"]
[EventCountry "SUI"]
[SourceTitle "playchess.com"]
[Source "ChessBase"]
[SourceQuality "1"]
[TimeControl "5400+30"]

{[%evp 11,80,22,25,20,29,12,25,8,10,15,6,0,0,0,22,16,13,7,10,7,40,-59,-52,-49,-54,-49,-56,-54,-56,-52,0,-57,-63,-120,-118,-126,-107,-121,-124,-115,-122,-145,-135,-156,-134,-316,-325,-334,-335,-334,-327,-997,-962,-1169,-1190,-1252,-1262,-5302,-1122,-5302,0,-5210,-5210,-5197,-1317,-1818,-1597,-1197,-941,-4133,-2172]} 1. e4 {[%emt 0:00:03]} c5 {[%emt 0:00:17]} 2. Nc3 {[%emt 0:00:14]} Nc6 {[%emt 0:00:01]} 3. Nf3 {[%emt 0:00:10]} e5 {[%emt 0:00:23]} 4. Bc4 {[%emt 0:00:16]} d6 {[%emt 0:01:00]} 5. O-O {[%emt 0:01:04]} Be7 {[%emt 0:04:00]} 6. d3 {[%emt 0:00:23]} Nf6 {[%emt 0:01:29][%cal Bg8f6,Bf6e8,Be8c7,Bc7e6,Be6f4][%mdl 32]} 7. a4 {[%emt 0:02:17] B30: Sicilian: 2...Nc6 3 Bb5, lines without ...g6.} O-O {[%emt 0:01:08]} 8. h3 {[%emt 0:14:33]} Ne8 {[%emt 0:08:49] [#]} 9. Ne1 $146 {[%emt 0:03:37] White has an edge.} ({Predecessor:} 9. Nd5 Be6 10. c3 Rc8 11. Ba2 a6 12. d4 cxd4 13. cxd4 exd4 14. Nxd4 Bxd5 15. Bxd5 {1-0 (44) Debevec,B (2114)-Janzelj,L (1884) Slovenia 2014}) 9... Bg5 {[%emt 0:05:53]} 10. f4 {[%emt 0:00:54]} exf4 {[%emt 0:01:22]} 11. Bxf4 {[%emt 0:00:44]} Bxf4 {[%emt 0:00:20]} 12. Rxf4 {[%emt 0:01:31]} Nc7 {[%emt 0:13:39]} 13. Qh5 {[%emt 0:10:01][%cal Rc4f7]} Ne6 {[%emt 0:01:57]} 14. Rf2 {[%emt 0:12:09]} Ne5 {[%emt 0:07:08]} 15. Ba2 {[%emt 0:07:04]} a6 {[%emt 0:03:22][%cal Ob7b5]} 16. Nf3 {[%emt 0:02:06]} (16. Nd5 $14) 16... Nf4 $15 {[%emt 0:07:20]} 17. Nxe5 {[%emt 0:06:39]} Nxh5 {[%emt 0:00:00]} 18. Nxf7 {[%emt 0:13:30] [#]} Rxf7 {[%emt 0:00:21]} 19. Bxf7+ {[%emt 0:00:00]} Kh8 {[%emt 0:06:18] Threatens to win with ...g6.} 20. Bxh5 {[%emt 0:03:26]} g6 {[%emt 0:05:45]} (20... Be6 $15) 21. Raf1 {[%emt 0:01:58]} Be6 $36 {[%emt 0:03:08][%mdl 2048] Black fights for an advantage.} 22. Rf6 {[%emt 0:00:30] Black continues to play with concentration.} ({White should try} 22. Bg4 $15 Bg8 23. Nd5) 22... Bg8 $1 $17 {[%emt 0:01:00]} 23. Bg4 {[%emt 0:00:44] [#]} Kg7 $1 {[%emt 0:01:26]} 24. e5 {[%emt 0:05:41]} dxe5 {[%emt 0:01:30]} 25. Ne4 {[%emt 0:01:55]} Qe7 {[%emt 0:03:30]} 26. Rd6 {[%emt 0:02:34] [#] Black must now prevent Rd7.} Rd8 {[%emt 0:01:48] Inhibits Rd7.} 27. Rff6 {[%emt 0:18:40]} c4 {[%emt 0:01:26]} 28. Rxd8 {[%emt 0:00:00]} (28. dxc4 $17 {was the only chance.} Bxc4 29. Rxd8 Qxd8 30. Rd6) 28... Qxd8 $19 {[%emt 0:00:02]} 29. Rd6 {[%emt 0:00:00]} Qa5 {[%emt 0:00:41]} 30. Rd7+ {[%emt 0:01:48]} Kh6 {[%emt 0:01:13]} 31. Nf6 $2 {[%emt 0:00:00]} (31. Bf3 Bd5 32. b4 cxb3 33. cxb3) 31... Qb6+ {[%emt 0:01:25]} 32. d4 {[%emt 0:00:00]} Qxf6 {[%emt 0:00:20]} 33. dxe5 {[%emt 0:00:00]} Qxe5 {[%emt 0:00:37]} 34. Rxb7 {[%emt 0:00:00]} Qe1+ {[%emt 0:12:14]} 35. Kh2 {[%emt 0:00:00]} Qe5+ {[%emt 0:00:04]} 36. Kg1 {[%emt 0:00:26]} Bd5 {[%emt 0:00:14] ( -> ...Qe1+). Black is clearly winning.} 37. Rd7 {[%emt 0:00:00]} Be6 {[%emt 0:00:29]} 38. Bxe6 {[%emt 0:00:00]} Qxe6 {[%emt 0:00:10]} 39. Rd1 {[%emt 0:00:18]} Qe3+ {[%emt 0:00:13]} 40. Kh1 {[%emt 0:00:00]} Qe2 {[%emt 0:00:52] Weighted Error Value: White=0.95/Black=0.52} 0-1

[Event "Swiss Championship U16 2022"]
[Site "Biel"]
[Date "2022.07.18"]
[Round "2.5"]
[White "Schellenberg, Simon"]
[Black "Papaux, Steve"]
[Result "1-0"]
[ECO "C65"]
[WhiteElo "1899"]
[BlackElo "2031"]
[Annotator "TA"]
[PlyCount "165"]
[EventDate "2022.07.18"]
[EventType "swiss"]
[EventCountry "SUI"]
[SourceTitle "playchess.com"]
[Source "ChessBase"]
[SourceQuality "1"]
[TimeControl "5400+30"]

{[%evp 9,165,13,18,5,21,7,23,22,20,14,29,0,18,-12,-1,-1,26,17,31,32,29,38,58,58,85,34,60,25,55,0,46,46,54,58,65,47,51,0,0,0,0,0,0,0,45,46,45,47,58,50,78,87,71,17,20,0,0,0,35,29,56,0,14,14,14,14,14,0,0,0,0,0,0,0,0,0,128,95,29966,29967,29988,29989,29989,452,448,310,296,266,271,287,287,287,287,287,280,264,308,308,295,287,278,251,259,156,252,156,681,589,141,111,675,564,1340,1282,995,817,6089,6089,29958,29962,29968,29971,29973,29974,29974,29974,29974,29975,29975,29976,29977,29978,29978,29974,29974,29974,29974,29975,29975,29975,29975,29976,29974,29977,29976,29978,29978,29978,29979,29980,29980,29981,29981,29981,29981,29982,29982,29982]} 1. e4 {[%emt 0:00:03]} e5 {[%emt 0:00:03]} 2. Nf3 {[%emt 0:00:11]} Nc6 {[%emt 0:00:02]} 3. Bb5 {[%emt 0:00:10]} Nf6 {[%emt 0:00:04]} 4. Bxc6 {[%emt 0:00:17]} dxc6 {[%emt 0:00:36]} 5. d3 {[%emt 0:03:25]} Bd6 {[%emt 0:05:13]} 6. h3 {[%emt 0:00:00] C65: Ruy Lopez: Berlin Defence (3...Nf6), unusual lines and 4 0-0 Bc5.} c5 {[%emt 0:03:07]} 7. Nbd2 {[%emt 0:00:41]} h6 {[%emt 0:07:01] [#]} 8. b3 $146 {[%emt 0:03:05] White has an edge.} ({Predecessor:} 8. Nc4 Qe7 9. b3 b5 10. Nxd6+ cxd6 11. a4 b4 12. Bb2 O-O 13. O-O Nh7 14. Nd2 {0-1 (45) Holopainen,T (2170)-Lehti,J (2239) Finland 2008}) 8... Be6 {[%emt 0:01:48]} 9. Bb2 {[%emt 0:00:41]} Nd7 {[%emt 0:00:22]} 10. Qe2 {[%emt 0:01:10]} Qe7 {[%emt 0:00:49]} 11. Nf1 {[%emt 0:02:38]} f6 {[%emt 0:03:57]} 12. Nh4 {[%emt 0:01:14]} Nf8 {[%emt 0:02:00] Inhibits Ng6.} 13. Ne3 {[%emt 0:01:32]} g6 {[%emt 0:02:04]} 14. O-O-O {[%emt 0:05:28]} O-O-O {[%emt 0:02:44]} 15. g3 {[%emt 0:02:41]} c6 {[%emt 0:05:07]} 16. Rdf1 {[%emt 0:04:23]} Rg8 {[%emt 0:16:36]} 17. Nhg2 {[%emt 0:10:32]} (17. f4 $16) 17... Bf7 {[%emt 0:05:41]} 18. Qd2 {[%emt 0:03:29]} Ne6 {[%emt 0:06:09]} 19. Ng4 {[%emt 0:03:40]} (19. f4 $14) 19... h5 {[%emt 0:00:52]} (19... c4 $1 $11) 20. Nh6 $14 {[%emt 0:00:20]} Rge8 {[%emt 0:00:18]} 21. f4 {[%emt 0:01:07]} Nd4 {[%emt 0:00:31]} 22. Nxf7 {[%emt 0:01:08]} Qxf7 {[%emt 0:00:07]} 23. fxe5 {[%emt 0:02:34]} (23. Nh4 $14) 23... Bxe5 $11 {[%emt 0:00:13]} 24. g4 {[%emt 0:00:34]} hxg4 {[%emt 0:04:19]} 25. hxg4 {[%emt 0:01:00]} Qe6 {[%emt 0:00:18]} 26. Ne3 {[%emt 0:03:44]} g5 {[%emt 0:05:46]} 27. Kb1 {[%emt 0:01:08]} Bf4 {[%emt 0:02:19]} 28. Qf2 {[%emt 0:00:25]} Rh8 {[%emt 0:02:22]} 29. Nf5 {[%emt 0:04:35][%cal Rf5d4]} Nxf5 {[%emt 0:01:20]} 30. exf5 {[%emt 0:00:14]} ({Much weaker is} 30. gxf5 Qe7 $11) 30... Qd6 {[%emt 0:00:15]} 31. Qg2 {[%emt 0:06:24]} (31. Qe1 $16) 31... Rhe8 {[%emt 0:06:38][%cal Bh8e8,Be8e5,Be5f5,Bf5f2][%mdl 32]} 32. Rh6 {[%emt 0:03:40]} Be5 {[%emt 0:00:17]} 33. Qd2 {[%emt 0:02:37]} Bd4 {[%emt 0:03:26]} 34. Re1 {[%emt 0:03:14]} Re5 {[%emt 0:05:28]} 35. Reh1 {[%emt 0:06:01]} (35. Bxd4 $14 cxd4 36. Rxe5 Qxe5 37. Qb4) 35... Bxb2 {[%emt 0:02:16]} 36. Kxb2 {[%emt 0:00:15]} Qd4+ {[%emt 0:00:23]} 37. Qc3 {[%emt 0:00:35] aiming for Qxd4.} Qxg4 {[%emt 0:00:27]} 38. Rxf6 {[%emt 0:00:24]} (38. Rh7 {is more complex.} Red5 39. Qa5 Qd4+ 40. Kb1) 38... Rxf5 {[%emt 0:00:22]} 39. Rg1 {[%emt 0:03:12]} Qf4 {[%emt 0:02:43]} 40. Rg6 {[%emt 0:01:23]} Qe3 {[%emt 0:01:25]} 41. Rh1 {[%emt 0:02:46]} Rf2 {[%emt 0:00:46]} 42. Re1 {[%emt 0:00:59][%mdl 64] Deflection} Qf4 {[%emt 0:00:46]} (42... Qxd3 $11 43. Qxd3 Rxd3) 43. Qxc5 {[%emt 0:03:26] Hoping for Re7.} Qd2 $2 {[%emt 0:00:37][%mdl 8192]} (43... Qf5 $16 44. Qxf5+ (44. Rxg5 Rxc2+ 45. Qxc2 Qxg5 $11) 44... Rxf5) 44. Re7 {[%emt 0:02:07]} Qf4 {[%emt 0:03:28] [#]} 45. Rxc6+ $1 {[%emt 0:03:09][%mdl 512]} Kb8 {[%emt 0:00:01]} 46. Rcc7 {[%emt 0:02:00]} (46. Qb5 $142 Rxc2+ 47. Kxc2 Qf2+ 48. Kb1 Qg1+ 49. Rc1 Qb6 50. Re8 $1 a5 51. Qxb6) 46... Qf6+ $18 {[%emt 0:00:19]} 47. Qc3 {[%emt 0:00:16]} Qxc3+ {[%emt 0:00:38]} 48. Kxc3 {[%emt 0:00:27]} Rc8 {[%emt 0:00:04]} 49. Rxc8+ {[%emt 0:00:10]} Kxc8 {[%emt 0:00:01][%mdl 4096] Endgame KR-KR} 50. Rg7 {[%emt 0:00:16]} Rg2 {[%emt 0:00:04]} 51. d4 {[%emt 0:00:10]} g4 {[%emt 0:00:06]} 52. Kd3 {[%emt 0:00:27]} Rg3+ {[%emt 0:00:44]} 53. Kc4 $1 {[%emt 0:00:27]} Rg2 {[%emt 0:00:22]} 54. c3 {[%emt 0:00:06]} Rxa2 {[%emt 0:00:17]} 55. Rxg4 {[%emt 0:00:10]} Rh2 {[%emt 0:00:25]} 56. Rg7 {[%emt 0:00:30]} Rh3 {[%emt 0:00:46]} (56... a6 $16 57. Rf7 Rh5) 57. Kb4 {[%emt 0:02:18]} a5+ $2 {[%emt 0:00:28]} (57... a6 $16 58. Kc4 Rh4) 58. Kxa5 {[%emt 0:02:10]} Rxc3 {[%emt 0:00:06]} 59. Kb4 {[%emt 0:00:06] White is more active.} Rc1 {[%emt 0:00:13][%mdl 8192]} (59... Re3 $16 60. d5 b5 61. Kxb5 Rxb3+ 62. Kc6 Rc3+ 63. Kd6 Rd3 64. Rc7+ Kd8) 60. Rg5 $1 {[%emt 0:01:17]} Kd7 {[%emt 0:00:13]} 61. Kb5 $1 {[%emt 0:00:35]} Rd1 {[%emt 0:00:59]} 62. Kc5 {[%emt 0:00:49] Threatens to win with b4.} Rd3 {[%emt 0:03:20] [#]} 63. b4 $1 {[%emt 0:00:30][%cal Bb3b4,Bb4b5,Bb5b6][%mdl 32] Intending Kb6 and mate.} Rc3+ {[%emt 0:00:09]} 64. Kb6 {[%emt 0:01:37] White mates.} Rc4 {[%emt 0:00:02]} 65. b5 {[%emt 0:00:19]} Rxd4 {[%emt 0:00:01]} 66. Kxb7 {[%emt 0:00:13]} Rd3 {[%emt 0:01:16]} 67. Rc5 {[%emt 0:00:14]} Kd6 {[%emt 0:00:27]} 68. Rc1 {[%emt 0:00:10]} Kd7 {[%emt 0:00:07]} 69. b6 {[%emt 0:01:26]} Rd2 {[%emt 0:00:12]} 70. Ra1 {[%emt 0:01:39]} Rb2 {[%emt 0:01:55]} 71. Ra4 {[%emt 0:00:08]} Kd6 {[%emt 0:00:12]} 72. Ka6 {[%emt 0:02:02]} Kc6 {[%emt 0:00:33]} 73. Rc4+ {[%emt 0:00:18]} Kd5 {[%emt 0:00:06]} 74. Rc8 {[%emt 0:00:53]} Kd6 {[%emt 0:00:41]} 75. b7 {[%emt 0:00:30]} Ra2+ {[%emt 0:00:07]} 76. Kb6 {[%emt 0:00:08]} Rb2+ {[%emt 0:00:01]} 77. Ka7 {[%emt 0:00:09]} Ra2+ {[%emt 0:00:02] [#]} 78. Kb8 $1 {[%emt 0:00:08]} Rb2 {[%emt 0:00:17]} 79. Rc1 {[%emt 0:00:16]} Kd7 {[%emt 0:01:12]} 80. Ra1 {[%emt 0:00:43]} Kc6 {[%emt 0:00:23]} 81. Ra6+ {[%emt 0:00:08]} Kd7 {[%emt 0:00:23]} 82. Ka8 {[%emt 0:00:57]} Kc7 {[%emt 0:00:15]} 83. Ra7 {[%emt 0:00:07] Weighted Error Value: White=0.28 (precise) /Black=0.61} 1-0

[Event "Swiss Championship U16 2022"]
[Site "Biel"]
[Date "2022.07.18"]
[Round "2.6"]
[White "Sosnovski, Nikita"]
[Black "Palmonella, Valentin"]
[Result "0-1"]
[ECO "B30"]
[WhiteElo "1584"]
[BlackElo "1778"]
[Annotator "NA RC COMBH"]
[PlyCount "60"]
[EventDate "2022.07.18"]
[EventType "swiss"]
[EventCountry "SUI"]
[SourceTitle "playchess.com"]
[Source "ChessBase"]
[SourceQuality "1"]
[TimeControl "5400+30"]

1. e4 {[%emt 0:00:02]} c5 {[%emt 0:00:04]} 2. Nf3 {[%emt 0:00:05]} Nc6 {[%emt 0:00:08]} 3. Bb5 {[%emt 0:00:08]} e6 {[%emt 0:01:06]} 4. O-O {[%emt 0:00:40]} Nge7 {[%emt 0:07:10]} 5. d4 {[%emt 0:04:14]} cxd4 {[%emt 0:02:58]} 6. Nxd4 {[%emt 0:00:27]} Ng6 {[%emt 0:04:04]} 7. Bxc6 {[%emt 0:01:27]} bxc6 {[%emt 0:01:11]} 8. c4 {[%emt 0:03:33]} Be7 {[%emt 0:02:10]} 9. Nc3 {[%emt 0:02:58]} O-O {[%emt 0:04:48]} 10. Be3 {[%emt 0:08:05]} Qa5 {[%emt 0:06:26]} 11. a3 {[%emt 0:03:44]} Qc7 {[%emt 0:11:47]} 12. Rc1 {[%emt 0:16:24]} a6 {[%emt 0:08:58]} 13. b4 {[%emt 0:01:26]} c5 {[%emt 0:03:58]} 14. bxc5 {[%emt 0:03:10]} Bxc5 {[%emt 0:04:30]} 15. Ra1 {[%emt 0:07:00]} Bd6 {[%emt 0:01:14]} 16. Nf3 {[%emt 0:02:04]} Qxc4 {[%emt 0:06:10]} 17. Na4 {[%emt 0:11:55]} Qxe4 {[%emt 0:00:00]} 18. Nb6 {[%emt 0:07:37]} Bc7 {[%emt 0:06:36]} 19. Nxa8 {[%emt 0:00:00]} Qxa8 {[%emt 0:02:28]} 20. Rc1 {[%emt 0:04:41]} Bb8 {[%emt 0:05:08]} 21. Bc5 {[%emt 0:03:00]} Rd8 {[%emt 0:04:09]} 22. Bb6 {[%emt 0:01:26]} Rf8 {[%emt 0:01:43]} 23. Rc3 {[%emt 0:04:53]} d6 {[%emt 0:05:15]} 24. Qc2 {[%emt 0:01:22]} Bb7 {[%emt 0:00:33]} 25. Rc1 {[%emt 0:00:54]} h6 {[%emt 0:01:33]} 26. Qd1 {[%emt 0:02:36]} Ne7 {[%emt 0:00:21]} 27. Bc7 {[%emt 0:00:00]} Nd5 {[%emt 0:01:16]} 28. Rb3 {[%emt 0:00:38]} Bxc7 {[%emt 0:00:38]} 29. Rxc7 {[%emt 0:00:00]} Nxc7 {[%emt 0:00:00]} 30. h3 {[%emt 0:00:27]} Bd5 {[%emt 0:00:48]} 0-1

[Event "Swiss Championship U16 2022"]
[Site "Biel"]
[Date "2022.07.18"]
[Round "2.7"]
[White "Saminskij, David"]
[Black "Hirzel, Cedric"]
[Result "0-1"]
[ECO "C13"]
[WhiteElo "1469"]
[BlackElo "1649"]
[Annotator "NA COMBH"]
[PlyCount "72"]
[EventDate "2022.07.18"]
[EventType "swiss"]
[EventCountry "SUI"]
[SourceTitle "playchess.com"]
[Source "ChessBase"]
[SourceQuality "1"]
[TimeControl "5400+30"]

1. e4 {[%emt 0:00:01]} e6 {[%emt 0:00:11]} 2. d4 {[%emt 0:00:05]} d5 {[%emt 0:00:03]} 3. Nc3 {[%emt 0:00:06]} Nf6 {[%emt 0:00:08]} 4. Bg5 {[%emt 0:00:05]} dxe4 {[%emt 0:00:05]} 5. Nxe4 {[%emt 0:02:36]} Nbd7 {[%emt 0:00:05]} 6. Bc4 {[%emt 0:00:36]} Be7 {[%emt 0:00:42]} 7. Nxf6+ {[%emt 0:01:35]} Bxf6 {[%emt 0:00:00]} 8. Bxf6 {[%emt 0:00:41]} Qxf6 {[%emt 0:00:00]} 9. Nf3 {[%emt 0:00:08]} c5 {[%emt 0:00:24]} 10. c3 {[%emt 0:01:23]} O-O {[%emt 0:01:47]} 11. O-O {[%emt 0:00:08]} Rd8 {[%emt 0:00:27]} 12. Qb3 {[%emt 0:02:24]} cxd4 {[%emt 0:02:16]} 13. Nxd4 {[%emt 0:00:00]} Ne5 {[%emt 0:01:35]} 14. Rad1 {[%emt 0:02:01]} b6 {[%emt 0:02:00]} 15. Rd2 {[%emt 0:06:23]} Bb7 {[%emt 0:01:38]} 16. f4 {[%emt 0:15:31]} Nc6 {[%emt 0:06:43]} 17. Qd1 {[%emt 0:06:49]} g6 {[%emt 0:24:30]} 18. Nxc6 {[%emt 0:09:17]} Bxc6 {[%emt 0:00:00]} 19. Rff2 {[%emt 0:01:06]} Rxd2 {[%emt 0:03:08]} 20. Qxd2 {[%emt 0:03:26]} Rd8 {[%emt 0:01:14]} 21. Qe1 {[%emt 0:02:03]} Qf5 {[%emt 0:15:10]} 22. Rd2 {[%emt 0:01:57]} Qc5+ {[%emt 0:00:00]} 23. Kh1 {[%emt 0:08:57]} Rxd2 {[%emt 0:00:00]} 24. Qxd2 {[%emt 0:00:10]} Qxc4 {[%emt 0:00:00]} 25. h3 {[%emt 0:00:44]} Qd5 {[%emt 0:00:00]} 26. Qe2 {[%emt 0:00:33]} Qxa2 {[%emt 0:00:00]} 27. c4 {[%emt 0:01:01]} Qb1+ {[%emt 0:00:00]} 28. Kh2 {[%emt 0:00:14]} Qe4 {[%emt 0:00:00]} 29. Qd2 {[%emt 0:00:38]} Qxc4 {[%emt 0:00:00]} 30. b3 {[%emt 0:00:08]} Qd5 {[%emt 0:00:00]} 31. Qa2 {[%emt 0:00:08]} Qxg2+ {[%emt 0:00:00]} 32. Qxg2 {[%emt 0:00:09]} Bxg2 {[%emt 0:00:13]} 33. Kxg2 {[%emt 0:00:12]} Kg7 {[%emt 0:00:00]} 34. Kf3 {[%emt 0:00:07]} Kf6 {[%emt 0:00:00]} 35. Ke4 {[%emt 0:00:06]} Ke7 {[%emt 0:00:24]} 36. b4 {[%emt 0:00:20]} a5 {[%emt 0:00:00]} 0-1

[Event "Swiss Championship U16 2022"]
[Site "Biel"]
[Date "2022.07.18"]
[Round "2.8"]
[White "Knapp, Yanik"]
[Black "Gendre, Arthur"]
[Result "1-0"]
[ECO "E32"]
[WhiteElo "1675"]
[BlackElo "1414"]
[Annotator "NA RC COMBH"]
[PlyCount "99"]
[EventDate "2022.07.18"]
[EventType "swiss"]
[EventCountry "SUI"]
[SourceTitle "playchess.com"]
[Source "ChessBase"]
[SourceQuality "1"]
[TimeControl "5400+30"]

1. d4 {[%emt 0:00:03]} Nf6 {[%emt 0:00:05]} 2. c4 {[%emt 0:00:13]} e6 {[%emt 0:00:10]} 3. Nc3 {[%emt 0:00:12]} Bb4 {[%emt 0:00:07]} 4. Qc2 {[%emt 0:00:19]} O-O {[%emt 0:00:08]} 5. a3 {[%emt 0:00:00]} Bxc3+ {[%emt 0:00:16]} 6. Qxc3 {[%emt 0:00:28]} b6 {[%emt 0:00:48]} 7. Bg5 {[%emt 0:00:13]} Bb7 {[%emt 0:00:46]} 8. e3 {[%emt 0:00:30]} h6 {[%emt 0:02:32]} 9. Bh4 {[%emt 0:02:25]} d5 {[%emt 0:05:49]} 10. Nf3 {[%emt 0:05:00]} Nbd7 {[%emt 0:05:32]} 11. Be2 {[%emt 0:01:41]} c5 {[%emt 0:06:21]} 12. O-O {[%emt 0:02:26]} Rc8 {[%emt 0:08:15]} 13. Rac1 {[%emt 0:14:34]} Ne4 {[%emt 0:13:26]} 14. Bxd8 {[%emt 0:02:08]} Nxc3 {[%emt 0:00:52]} 15. bxc3 {[%emt 0:00:17]} Rfxd8 {[%emt 0:03:11]} 16. cxd5 {[%emt 0:00:46]} Bxd5 {[%emt 0:07:17]} 17. Nd2 {[%emt 0:02:16]} cxd4 {[%emt 0:00:43]} 18. cxd4 {[%emt 0:00:10]} Nf6 {[%emt 0:02:01]} 19. Ba6 {[%emt 0:02:28]} Rxc1 {[%emt 0:00:08]} 20. Rxc1 {[%emt 0:00:44]} Kf8 {[%emt 0:03:20]} 21. f3 {[%emt 0:01:35]} Rd7 {[%emt 0:04:14]} 22. Kf2 {[%emt 0:01:12]} Ne8 {[%emt 0:05:38]} 23. Rc8 {[%emt 0:03:01]} Rc7 {[%emt 0:04:38]} 24. e4 {[%emt 0:29:43]} Rxc8 {[%emt 0:00:42]} 25. Bxc8 {[%emt 0:00:16]} Bc6 {[%emt 0:01:21]} 26. Ba6 {[%emt 0:00:17]} Ke7 {[%emt 0:02:16]} 27. Ke3 {[%emt 0:00:48]} Nc7 {[%emt 0:03:25]} 28. Bc4 {[%emt 0:03:31]} Bb5 {[%emt 0:01:34]} 29. Kd3 {[%emt 0:02:26]} Kd6 {[%emt 0:08:35]} 30. Nb1 {[%emt 0:01:44]} Bxc4+ {[%emt 0:00:14]} 31. Kxc4 {[%emt 0:00:28]} a6 {[%emt 0:01:36]} 32. a4 {[%emt 0:00:38]} b5+ {[%emt 0:00:14]} 33. axb5 {[%emt 0:00:16]} axb5+ {[%emt 0:00:37]} 34. Kb4 {[%emt 0:00:37]} g6 {[%emt 0:01:30]} 35. Nc3 {[%emt 0:00:38]} Kc6 {[%emt 0:03:25]} 36. h4 {[%emt 0:02:43]} f6 {[%emt 0:03:19]} 37. Ka5 {[%emt 0:03:48]} h5 {[%emt 0:02:20]} 38. g4 {[%emt 0:03:23]} f5 {[%emt 0:00:10]} 39. g5 {[%emt 0:05:22]} f4 {[%emt 0:01:16]} 40. Ne2 {[%emt 0:00:18]} e5 {[%emt 0:00:09]} 41. dxe5 {[%emt 0:08:22]} Ne6 {[%emt 0:00:46]} 42. Kb4 {[%emt 0:01:00]} Kb6 {[%emt 0:01:17]} 43. Nc3 {[%emt 0:00:50]} Nd4 {[%emt 0:00:33]} 44. Nd5+ {[%emt 0:01:12]} Kb7 {[%emt 0:00:00]} 45. Nxf4 {[%emt 0:00:00]} Nxf3 {[%emt 0:00:00]} 46. Nxg6 {[%emt 0:00:43]} Kc6 {[%emt 0:00:42]} 47. e6 {[%emt 0:00:00]} Kd6 {[%emt 0:00:22]} 48. e7 {[%emt 0:00:00]} Kd7 {[%emt 0:00:26]} 49. Kxb5 {[%emt 0:00:21]} Nd4+ {[%emt 0:00:34]} 50. Kc4 {[%emt 0:01:09]} 1-0

[Event "Swiss Championship U16 2022"]
[Site "Biel"]
[Date "2022.07.19"]
[Round "3.1"]
[White "Gemelli, Romain"]
[Black "Kostov, Kyrill"]
[Result "1-0"]
[ECO "A57"]
[WhiteElo "2045"]
[BlackElo "2008"]
[Annotator "TA"]
[PlyCount "81"]
[EventDate "2022.07.18"]
[EventType "swiss"]
[EventCountry "SUI"]
[SourceTitle "playchess.com"]
[Source "ChessBase"]
[SourceQuality "1"]
[TimeControl "5400+30"]

{[%evp 15,81,48,50,54,102,77,100,68,130,141,131,125,129,131,139,126,163,152,171,180,222,233,222,207,205,157,173,167,340,318,496,440,445,431,467,463,423,458,450,474,465,465,403,440,468,408,1027,571,1057,1042,2994,2989,1745,1091,29985,29986,29993,5412,29996,29990,29994,29993,29993,29994,29994,29995,29996,29990]} 1. d4 {[%emt 0:00:04]} Nf6 {[%emt 0:00:12]} 2. c4 {[%emt 0:00:10]} c5 {[%emt 0:00:34]} 3. d5 {[%emt 0:00:13]} b5 {[%emt 0:00:54]} 4. Nf3 {[%emt 0:00:26]} d6 {[%emt 0:00:39]} 5. cxb5 {[%emt 0:00:55]} a6 {[%emt 0:00:31]} 6. e3 {[%emt 0:06:44]} g6 {[%emt 0:00:22]} 7. Nc3 {[%emt 0:01:29]} Bg7 {[%emt 0:00:24]} 8. a4 {[%emt 0:03:52]} O-O {[%emt 0:00:24]} 9. e4 {[%emt 0:16:27] A57: Benko/Volga Gambit.} Ne8 {[%emt 0:06:55]} (9... e6 $14) 10. Bf4 {[%emt 0:04:21] [#]} axb5 $146 {[%emt 0:03:51]} ({Predecessor:} 10... Qa5 11. Bd2 axb5 12. Nxb5 Qb6 13. Bc3 Nc7 14. h4 h5 15. Nd2 Ba6 16. Nxc7 Qxc7 {½-½ (51) Polyakov,M (2305)-Grekh,A (2376) Odessa 2008}) 11. axb5 {[%emt 0:10:24] White is better.} Bb7 {[%emt 0:12:40]} (11... Rxa1 $14 12. Qxa1 f5) 12. Rxa8 $16 {[%emt 0:00:00]} Bxa8 {[%emt 0:03:19]} 13. Be2 {[%emt 0:06:27]} Nd7 {[%emt 0:04:09]} 14. O-O {[%emt 0:05:23]} Nc7 {[%emt 0:12:21]} 15. Qd2 {[%emt 0:04:36] White is more active.} Qb8 {[%emt 0:08:41]} 16. Ra1 {[%emt 0:04:25]} Re8 {[%emt 0:05:26]} 17. h4 {[%emt 0:00:00][%cal Bh2h4,Bh4h5][%mdl 32]} Nb6 {[%emt 0:04:48]} 18. h5 {[%emt 0:04:31]} Bb7 {[%emt 0:02:56]} 19. Ra3 {[%emt 0:02:43]} Bc8 {[%emt 0:00:23]} 20. hxg6 {[%emt 0:02:01]} hxg6 {[%emt 0:00:44]} 21. e5 {[%emt 0:02:42]} Rd8 $2 {[%emt 0:07:08]} (21... Bg4 {is a better defense.}) 22. Bg5 $18 {[%emt 0:06:01]} Bf8 {[%emt 0:04:38]} (22... Re8 {keeps fighting.} 23. e6 Bxc3 24. bxc3 (24. Qxc3 Ncxd5 25. exf7+ Kxf7 $16) 24... Ncxd5 25. exf7+ Kxf7) 23. Bh6 {[%emt 0:04:42] [#] Threatens to win with Bxf8.} Bg7 {[%emt 0:05:29]} 24. e6 {[%emt 0:11:32]} Bxe6 {[%emt 0:00:35]} 25. dxe6 {[%emt 0:00:00]} Nxe6 {[%emt 0:00:34]} 26. Bxg7 {[%emt 0:00:14]} Kxg7 {[%emt 0:03:59]} 27. Nd5 {[%emt 0:01:47]} Nxd5 {[%emt 0:07:06]} 28. Qxd5 {[%emt 0:00:00]} Nf4 {[%emt 0:00:39]} 29. Qd2 {[%emt 0:02:01]} e5 {[%emt 0:01:39]} 30. g3 {[%emt 0:01:06]} Nh5 {[%emt 0:04:07]} (30... Nxe2+ $142 31. Qxe2 Qb7) 31. Qg5 {[%emt 0:00:59] Strongly threatening Nh4.} f6 {[%emt 0:00:25]} 32. Qg4 {[%emt 0:01:44] Nh4 is the strong threat.} Kh6 {[%emt 0:01:12]} 33. Nh4 {[%emt 0:00:03][%csl Gh4][%cal Rg4g6]} Rg8 {[%emt 0:00:56]} 34. Qe6 {[%emt 0:00:47] Bxh5 would kill now.} Qd8 {[%emt 0:00:29]} 35. Bxh5 {[%emt 0:00:30]} Kxh5 {[%emt 0:00:56]} 36. Ra6 {[%emt 0:00:39]} (36. Qh3 $142 Qd7 37. Qxd7 Rh8 38. Qg7 Rg8 39. Qxg8 g5 {[#]} 40. f3 $1 gxh4 41. Ra7 hxg3 42. Rh7#) 36... d5 {[%emt 0:00:22]} 37. Rd6 {[%emt 0:00:09] White mates.} Qa5 {[%emt 0:00:00]} 38. Qxg8 {[%emt 0:00:00][%csl Gh4][%cal Rg8g6]} Qe1+ {[%emt 0:00:18]} 39. Kg2 {[%emt 0:00:21][%csl Gh4][%cal Rg8g6]} Qe4+ {[%emt 0:00:10]} 40. Nf3 {[%emt 0:00:21]} Kg4 {[%emt 0:00:04]} 41. Qxd5 {[%emt 0:00:38] Black did not feel at home in the position after the opening.  Weighted Error Value: White=0.28 (precise) /Black=0.84} 1-0